lending/lending_fUSD_20241007
["ID","MTS","AMOUNT","RATE_DAILY","PERIOD"]
[339982256,1728264641270,-500.0,0.00029448,2]
[339982257,1728264641280,-500.0,0.00029448,2]
[339982258,1728264641290,-500.0,0.00029448,2]
[339982259,1728264641299,-500.0,0.00029448,2]
[339982260,1728264641308,-500.0,0.00029448,2]
[339982261,1728264641317,-500.0,0.00029448,2]
[339982262,1728264641327,-500.0,0.00029448,2]
[339982263,1728264641336,-500.0,0.00029448,2]
[339982264,1728264641346,-500.0,0.00029448,2]
[339982265,1728264641361,-500.0,0.00029448,2]
[339982266,1728264641370,-500.0,0.00029448,2]
[339982267,1728264641379,-500.0,0.00029448,2]
[339982268,1728264641388,-500.0,0.00029448,2]
[339982269,1728264641397,-500.0,0.00029448,2]
[339982270,1728264641406,-500.0,0.00029448,2]
[339982271,1728264641415,-500.0,0.00029448,2]
[339982272,1728264641424,-500.0,0.00029448,2]
[339982273,1728264641433,-500.0,0.00029448,2]
[339982274,1728264641442,-500.0,0.00029448,2]
[339982275,1728264641451,-401.31,0.00029448,2]
[339982276,1728264641460,-500.0,0.00029448,2]
[339982277,1728264641469,-500.0,0.00029448,2]
[339982278,1728264641479,-500.0,0.00029448,2]
[339982279,1728264641487,-500.0,0.00029448,2]
[339982280,1728264641496,-500.0,0.00029448,2]
[339982281,1728264641505,-500.0,0.00029448,2]
[339982282,1728264641514,-500.0,0.00029448,2]
[339982283,1728264641522,-500.0,0.00029448,2]
[339982284,1728264641531,-500.0,0.00029448,2]
[339982285,1728264641540,-500.0,0.00029448,2]
[339982286,1728264641549,-500.0,0.00029448,2]
[339982287,1728264641558,-500.0,0.00029448,2]
[339982288,1728264641567,-500.0,0.00029448,2]
[339982289,1728264641576,-500.0,0.00029448,2]
[339982290,1728264641585,-500.0,0.00029448,2]
[339982291,1728264641594,-500.0,0.00029448,2]
[339982292,1728264641603,-500.0,0.00029448,2]
[339982293,1728264641611,-500.0,0.00029448,2]
[339982294,1728264641621,-500.0,0.00029448,2]
[339982295,1728264641629,-500.0,0.00029448,2]
[339982296,1728264641638,-500.0,0.00029448,2]
[339982297,1728264641647,-500.0,0.00029448,2]
[339982298,1728264641655,-500.0,0.00029448,2]
[339982299,1728264641664,-500.0,0.00029448,2]
[339982300,1728264641673,-500.0,0.00029448,2]
[339982301,1728264641682,-500.0,0.00029448,2]
[339982302,1728264641691,-500.0,0.00029448,2]
[339982303,1728264641700,-500.0,0.00029448,2]
[339982304,1728264641709,-500.0,0.00029448,2]
[339982305,1728264641718,-500.0,0.00029448,2]
[339982306,1728264641727,-500.0,0.00029448,2]
[339982307,1728264641736,-500.0,0.00029448,2]
[339982308,1728264641744,-500.0,0.00029448,2]
[339982309,1728264641755,-500.0,0.00029448,2]
[339982310,1728264641764,-500.0,0.00029448,2]
[339982311,1728264641773,-500.0,0.00029448,2]
[339982312,1728264641782,-405.55,0.00029448,2]
[339982313,1728264641791,-500.0,0.00029448,2]
[339982314,1728264641800,-500.0,0.00029448,2]
[339982315,1728264641809,-500.0,0.00029448,2]
[339982316,1728264641818,-423.5,0.00029479,2]
[339982317,1728264641827,-423.5,0.00029479,2]
[339982318,1728264641835,-433.44,0.00029479,2]
[339982319,1728264641844,-357.11,0.00029562,2]
[339982320,1728264641853,-420.30891359,0.00029645,2]
[339982321,1728264641863,-250.25,0.0003,30]
[339982322,1728264641872,-250.0,0.0003,10]
[339982323,1728264641881,-276.38,0.0003,30]
[339982324,1728264641890,-300.0,0.00030164,2]
[339982325,1728264641899,-358.66,0.00030164,2]
[339982326,1728264641908,-302.91,0.00030164,2]
[339982327,1728264641917,-150.0,0.00030164,2]
[339982328,1728264641926,-151.21,0.00030164,2]
[339982329,1728264641935,-150.0,0.00030164,2]
[339982330,1728264641944,-150.0,0.00030164,2]
[339982331,1728264641953,-358.66,0.00030164,2]
[339982332,1728264641962,-358.66,0.00030164,2]
[339982333,1728264641971,-150.0,0.00030164,2]
[339982334,1728264641980,-150.0,0.00030164,2]
[339982335,1728264641991,-152.55,0.00030164,2]
[339982336,1728264642000,-153.13,0.00030164,2]
[339982337,1728264642009,-366.66,0.00030164,2]
[339982338,1728264642018,-588.56681748,0.00030165,2]
[339982339,1728264642027,-4917.9481,0.00030165,2]
[339982340,1728264642037,-18836.5568,0.00030165,2]
[339982341,1728264642045,-6690.2647,0.00030165,2]
[339982342,1728264642054,-1763.6615,0.00030165,2]
[339982343,1728264642063,-568.12866876,0.00030165,15]
[339982344,1728264642072,-500.0,0.00030265,2]
[339982345,1728264642081,-500.0,0.00030265,2]
[339982346,1728264642090,-500.0,0.00030265,2]
[339982347,1728264642104,-500.0,0.00030265,2]
[339982348,1728264642113,-500.0,0.00030265,2]
[339982349,1728264642122,-500.0,0.00030265,2]
[339982350,1728264642132,-500.0,0.00030265,2]
[339982351,1728264642141,-500.0,0.00030265,2]
[339982352,1728264642150,-500.0,0.00030265,2]
[339982353,1728264642159,-500.0,0.00030265,2]
[339982354,1728264642169,-500.0,0.00030265,2]
[339982355,1728264642180,-500.0,0.00030265,2]
[339982356,1728264642190,-500.0,0.00030265,2]
[339982357,1728264642199,-500.0,0.00030265,2]
[339982358,1728264642208,-500.0,0.00030265,2]
[339982359,1728264642217,-500.0,0.00030265,2]
[339982360,1728264642226,-500.0,0.00030265,2]
[339982361,1728264642236,-500.0,0.00030265,2]
[339982362,1728264642245,-500.0,0.00030265,2]
[339982363,1728264642254,-500.0,0.00030265,2]
[339982364,1728264642263,-500.0,0.00030265,2]
[339982365,1728264642272,-500.0,0.00030265,2]
[339982366,1728264642281,-500.0,0.00030265,2]
[339982367,1728264642290,-500.0,0.00030265,2]
[339982368,1728264642299,-500.0,0.00030265,2]
[339982369,1728264642308,-500.0,0.00030265,2]
[339982370,1728264642317,-500.0,0.00030265,2]
[339982371,1728264642326,-500.0,0.00030265,2]
[339982372,1728264642335,-500.0,0.00030265,2]
[339982373,1728264642344,-500.0,0.00030265,2]
[339982374,1728264642353,-500.0,0.00030265,2]
[339982375,1728264642362,-500.0,0.00030265,2]
[339982376,1728264642371,-500.0,0.00030265,2]
[339982377,1728264642381,-500.0,0.00030265,2]
[339982378,1728264642390,-500.0,0.00030265,2]
[339982379,1728264642399,-500.0,0.00030265,2]
[339982380,1728264642407,-500.0,0.00030265,2]
[339982381,1728264642417,-500.0,0.00030265,2]
[339982382,1728264642426,-500.0,0.00030265,2]
[339982383,1728264642435,-500.0,0.00030265,2]
[339982384,1728264642444,-500.0,0.00030265,2]
[339982385,1728264642453,-500.0,0.00030265,2]
[339982386,1728264642462,-500.0,0.00030265,2]
[339982387,1728264642471,-500.0,0.00030265,2]
[339982388,1728264642480,-500.0,0.00030265,2]
[339982389,1728264642489,-500.0,0.00030265,2]
[339982390,1728264642498,-500.0,0.00030265,2]
[339982391,1728264642506,-500.0,0.00030265,2]
[339982392,1728264642515,-500.0,0.00030265,2]
[339982393,1728264642524,-500.0,0.00030265,2]
[339982394,1728264642533,-500.0,0.00030265,2]
[339982395,1728264642542,-500.0,0.00030265,2]
[339982396,1728264642551,-500.0,0.00030265,2]
[339982397,1728264642560,-500.0,0.00030265,2]
[339982398,1728264642569,-500.0,0.00030265,2]
[339982399,1728264642577,-500.0,0.00030265,2]
[339982400,1728264642586,-500.0,0.00030265,2]
[339982401,1728264642595,-500.0,0.00030265,2]
[339982402,1728264642604,-500.0,0.00030265,2]
[339982403,1728264642613,-500.0,0.00030265,2]
[339982404,1728264642621,-500.0,0.00030265,2]
[339982405,1728264642630,-500.0,0.00030265,2]
[339982406,1728264642639,-500.0,0.00030265,2]
[339982407,1728264642648,-500.0,0.00030265,2]
[339982408,1728264642657,-500.0,0.00030265,2]
[339982409,1728264642666,-500.0,0.00030265,2]
[339982410,1728264642675,-500.0,0.00030265,2]
[339982411,1728264642683,-500.0,0.00030265,2]
[339982412,1728264642692,-500.0,0.00030265,2]
[339982413,1728264642701,-500.0,0.00030265,2]
[339982414,1728264642710,-500.0,0.00030265,2]
[339982415,1728264642719,-500.0,0.00030265,2]
[339982416,1728264642728,-500.0,0.00030265,2]
[339982417,1728264642737,-500.0,0.00030265,2]
[339982418,1728264642745,-500.0,0.00030265,2]
[339982419,1728264642754,-500.0,0.00030265,2]
[339982420,1728264642763,-500.0,0.00030265,2]
[339982421,1728264642772,-500.0,0.00030265,2]
[339982422,1728264642781,-500.0,0.00030265,2]
[339982423,1728264642790,-500.0,0.00030265,2]
[339982424,1728264642798,-500.0,0.00030265,2]
[339982425,1728264642807,-500.0,0.00030265,2]
[339982426,1728264642816,-500.0,0.00030265,2]
[339982427,1728264642825,-500.0,0.00030265,2]
[339982428,1728264642834,-500.0,0.00030265,2]
[339982429,1728264642843,-500.0,0.00030265,2]
[339982430,1728264642852,-500.0,0.00030265,2]
[339982431,1728264642861,-500.0,0.00030265,2]
[339982432,1728264642870,-500.0,0.00030265,2]
[339982433,1728264642880,-500.0,0.00030265,2]
[339982434,1728264642889,-500.0,0.00030265,2]
[339982435,1728264642898,-500.0,0.00030265,2]
[339982436,1728264642906,-500.0,0.00030265,2]
[339982437,1728264642915,-500.0,0.00030265,2]
[339982438,1728264642923,-500.0,0.00030265,2]
[339982439,1728264642932,-500.0,0.00030265,2]
[339982440,1728264642941,-500.0,0.00030265,2]
[339982441,1728264642950,-500.0,0.00030265,2]
[339982442,1728264642958,-500.0,0.00030265,2]
[339982443,1728264642967,-500.0,0.00030265,2]
[339982444,1728264642976,-500.0,0.00030265,2]
[339982445,1728264642986,-500.0,0.00030265,2]
[339982446,1728264642995,-500.0,0.00030265,2]
[339982447,1728264643005,-500.0,0.00030265,2]
[339982448,1728264643014,-500.0,0.00030265,2]
[339982449,1728264643023,-500.0,0.00030265,2]
[339982450,1728264643033,-500.0,0.00030265,2]
[339982451,1728264643042,-500.0,0.00030265,2]
[339982452,1728264643051,-500.0,0.00030265,2]
[339982453,1728264643060,-500.0,0.00030265,2]
[339982454,1728264643069,-500.0,0.00030265,2]
[339982455,1728264643078,-500.0,0.00030265,2]
[339982456,1728264643087,-500.0,0.00030265,2]
[339982457,1728264643096,-500.0,0.00030265,2]
[339982458,1728264643106,-500.0,0.00030265,2]
[339982459,1728264643118,-500.0,0.00030265,2]
[339982460,1728264643127,-500.0,0.00030265,2]
[339982461,1728264643136,-500.0,0.00030265,2]
[339982462,1728264643145,-213.68516684,0.00030265,2]
[339982463,1728264643161,-286.31483316,0.00030265,2]
[339982464,1728264643171,-500.0,0.00030265,2]
[339982466,1728264643271,-500.0,0.00030265,2]
[339982467,1728264643281,-500.0,0.00030265,2]
[339982468,1728264643290,-500.0,0.00030265,2]
[339982469,1728264643299,-395.1868269,0.00030265,2]
[339982470,1728264643311,-104.8131731,0.00030265,2]
[339982471,1728264643320,-500.0,0.00030265,2]
[339982472,1728264643329,-500.0,0.00030265,2]
[339982473,1728264643338,-500.0,0.00030265,2]
[339982474,1728264643347,-251.63122735,0.00030265,2]
[339982475,1728264643358,-248.36877265,0.00030265,2]
[339982476,1728264643367,-500.0,0.00030265,2]
[339982479,1728264643376,-500.0,0.00030265,2]
[339982481,1728264643385,-500.0,0.00030265,2]
[339982483,1728264643394,-500.0,0.00030265,2]
[339982485,1728264643403,-500.0,0.00030265,2]
[339982487,1728264643412,-262.63544602,0.00030265,2]
[339982488,1728264643423,-237.36455398,0.00030265,2]
[339982489,1728264643432,-336.63544602,0.00030265,2]
[339982491,1728264643454,-163.36455398,0.00030265,2]
[339982492,1728264643463,-186.18011678,0.00030265,2]
[339982496,1728264643641,-313.81988322,0.00030265,2]
[339982497,1728264643650,-116.87631103,0.00030265,2]
[339982498,1728264643661,-294.875,0.00030265,2]
[339982499,1728264643677,-88.24868897,0.00030265,2]
[339982500,1728264643686,-500.0,0.00030265,2]
[339982501,1728264643695,-500.0,0.00030265,2]
[339982502,1728264643705,-500.0,0.00030265,2]
[339982503,1728264643714,-500.0,0.00030265,2]
[339982504,1728264643723,-500.0,0.00030265,2]
[339982505,1728264643731,-500.0,0.00030265,2]
[339982506,1728264643741,-500.0,0.00030265,2]
[339982507,1728264643750,-500.0,0.00030265,2]
[339982508,1728264643759,-500.0,0.00030265,2]
[339982509,1728264643769,-500.0,0.00030265,2]
[339982510,1728264643778,-500.0,0.00030265,2]
[339982511,1728264643788,-500.0,0.00030265,2]
[339982512,1728264643797,-500.0,0.00030265,2]
[339982513,1728264643806,-500.0,0.00030265,2]
[339982514,1728264643816,-500.0,0.00030265,2]
[339982515,1728264643826,-500.0,0.00030265,2]
[339982516,1728264643835,-500.0,0.00030265,2]
[339982517,1728264643845,-500.0,0.00030265,2]
[339982518,1728264643854,-500.0,0.00030265,2]
[339982519,1728264643864,-500.0,0.00030265,2]
[339982520,1728264643873,-500.0,0.00030265,2]
[339982521,1728264643883,-500.0,0.00030265,2]
[339982522,1728264643892,-500.0,0.00030265,2]
[339982523,1728264643901,-500.0,0.00030265,2]
[339982524,1728264643911,-500.0,0.00030265,2]
[339982525,1728264643920,-500.0,0.00030265,2]
[339982526,1728264643931,-500.0,0.00030265,2]
[339982527,1728264643940,-1000.0,0.00030296,2]
[339982528,1728264643950,-1000.0,0.00030296,2]
[339982530,1728264643960,-1000.0,0.00030296,2]
[339982531,1728264643970,-722.6143,0.00030296,2]
[339982532,1728264643979,-429.0,0.000304,14]
[339982533,1728264643988,-281.07078788,0.00030412,2]
[339982534,1728264643997,-423.5,0.00030438,2]
[339982535,1728264644006,-845.88,0.00030438,2]
[339982536,1728264644015,-151.0,0.00030442,7]
[339982537,1728264644024,-151.0,0.00030442,7]
[339982538,1728264644033,-446.15330726,0.00030449,2]
[339982539,1728264644043,-178.12995947,0.00030451,2]
[339982540,1728264644052,-151.0,0.00030452,7]
[339982541,1728264644061,-151.0,0.00030452,7]
[339982542,1728264644071,-151.0,0.00030452,7]
[339982543,1728264644080,-151.0,0.00030452,7]
[339982544,1728264644090,-151.0,0.00030452,7]
[339982545,1728264644102,-151.0,0.00030452,7]
[339982546,1728264644114,-967.221255,0.00030452,7]
[339982547,1728264644124,-967.221255,0.00030452,7]
[339982548,1728264644134,-967.221255,0.00030452,7]
[339982549,1728264644145,-151.0,0.00030452,7]
[339982550,1728264644155,-151.0,0.00030452,7]
[339982551,1728264644164,-29987.9766327,0.0003047,2]
[339982552,1728264644174,-4113.5096063,0.00030491,2]
[339982553,1728264644183,-11479.1330872,0.00030491,2]
[339982554,1728264644194,-34919.8414098,0.00030491,2]
[339982555,1728264644205,-7500.0,0.00030512,2]
[339982556,1728264644214,-174.95879954,0.00030611,5]
[339982557,1728264644224,-502.11392328,0.00030611,5]
[339982558,1728264644233,-247.9439178,0.00030649,5]
[339982559,1728264644243,-398.23,0.00030807,2]
[339982560,1728264644253,-217.0,0.00030864,2]
[339982561,1728264644262,-152.0,0.00030879,4]
[339982562,1728264644272,-3400.0,0.000309,11]
[339982563,1728264644282,-150.0,0.0003096,2]
[339982564,1728264644292,-180.0,0.0003096,120]
[339982565,1728264644302,-150.0,0.00030961,2]
[339982566,1728264644311,-150.0,0.00030961,2]
[339982567,1728264644320,-150.0,0.00030962,2]
[339982568,1728264644330,-150.0,0.00030965,2]
[339982569,1728264644339,-150.0,0.00030968,2]
[339982570,1728264644353,-1197.39864416,0.00030969,15]
[339982571,1728264644363,-150.0,0.00030971,2]
[339982572,1728264644372,-154.49211561,0.00030974,2]
[339982573,1728264644381,-150.0,0.00030975,2]
[339982574,1728264644391,-150.0,0.00030976,2]
[339982575,1728264644400,-150.0,0.00030976,2]
[339982576,1728264644410,-150.0,0.00030977,2]
[339982577,1728264644419,-250.0,0.00030977,2]
[339982578,1728264644429,-150.0,0.0003098,2]
[339982579,1728264644439,-150.0,0.0003098,2]
[339982580,1728264644449,-150.0,0.0003098,2]
[339982581,1728264644458,-150.0,0.0003098,2]
[339982582,1728264644467,-1500.0,0.0003098,2]
[339982583,1728264644476,-150.0,0.00030986,2]
[339982584,1728264644486,-150.0,0.00030986,2]
[339982585,1728264644496,-150.0,0.00030994,2]
[339982586,1728264644506,-150.0,0.00030994,2]
[339982587,1728264644515,-150.0,0.00030996,2]
[339982588,1728264644525,-150.0,0.00030996,2]
[339982589,1728264644534,-150.0,0.00030999,2]
[339982590,1728264644544,-150.0,0.00030999,2]
[339982591,1728264644554,-473.85,0.00031,30]
[339982592,1728264644563,-150.0,0.00031007,2]
[339982593,1728264644572,-150.0,0.00031009,2]
[339982594,1728264644581,-150.0,0.00031009,2]
[339982595,1728264644591,-150.0,0.0003101,2]
[339982596,1728264644604,-150.0,0.00031012,2]
[339982597,1728264644619,-150.0,0.00031013,2]
[339982598,1728264644629,-150.0,0.00031015,2]
[339982599,1728264644638,-150.0,0.00031016,2]
[339982600,1728264644647,-1500.0,0.00031017,2]
[339982601,1728264644656,-1500.0,0.0003102,2]
[339982602,1728264644666,-150.0,0.00031021,2]
[339982603,1728264644674,-150.0,0.00031022,2]
[339982604,1728264644684,-150.0,0.00031022,2]
[339982605,1728264644693,-150.0,0.00031024,2]
[339982606,1728264644702,-150.0,0.00031029,2]
[339982607,1728264644711,-150.0,0.00031029,2]
[339982608,1728264644721,-150.0,0.00031031,2]
[339982609,1728264644730,-150.0,0.00031031,2]
[339982610,1728264644739,-1500.0,0.00031031,2]
[339982611,1728264644748,-150.0,0.00031032,2]
[339982612,1728264644758,-150.0,0.00031034,2]
[339982613,1728264644767,-150.0,0.00031034,2]
[339982614,1728264644776,-150.0,0.00031034,2]
[339982615,1728264644785,-150.0,0.00031036,2]
[339982616,1728264644796,-150.0,0.00031037,2]
[339982617,1728264644806,-150.0,0.00031042,2]
[339982618,1728264644816,-150.0,0.00031044,2]
[339982619,1728264644825,-1500.0,0.00031044,2]
[339982620,1728264644835,-150.0,0.00031046,2]
[339982621,1728264644844,-1500.0,0.00031046,2]
[339982622,1728264644858,-150.0,0.00031047,2]
[339982623,1728264644868,-150.0,0.00031047,2]
[339982624,1728264644878,-150.0,0.00031054,2]
[339982625,1728264644887,-150.0,0.00031057,2]
[339982626,1728264644897,-150.0,0.0003106,2]
[339982627,1728264644907,-1500.0,0.00031064,2]
[339982628,1728264644916,-154.0,0.00031072,5]
[339982629,1728264644926,-150.0,0.00031072,2]
[339982630,1728264644935,-150.0,0.00031073,2]
[339982631,1728264644946,-150.0,0.00031074,2]
[339982632,1728264644955,-150.0,0.00031077,2]
[339982633,1728264644964,-150.0,0.00031079,2]
[339982634,1728264644974,-1500.0,0.00031083,2]
[339982635,1728264644986,-150.0,0.00031084,2]
[339982636,1728264644995,-150.0,0.00031086,2]
[339982637,1728264645005,-150.0,0.00031086,2]
[339982638,1728264645014,-151.0,0.0003109,7]
[339982639,1728264645023,-151.0,0.0003109,7]
[339982640,1728264645032,-967.221255,0.0003109,7]
[339982641,1728264645041,-967.221255,0.0003109,7]
[339982642,1728264645051,-150.0,0.00031093,2]
[339982643,1728264645060,-151.0,0.00031096,7]
[339982644,1728264645071,-151.0,0.00031096,7]
[339982645,1728264645080,-150.0,0.00031097,2]
[339982646,1728264645090,-150.0,0.00031098,2]
[339982647,1728264645104,-150.0,0.000311,2]
[339982648,1728264645116,-150.0,0.00031101,2]
[339982649,1728264645126,-500.0,0.00031104,2]
[339982650,1728264645135,-1500.0,0.00031104,2]
[339982651,1728264645144,-150.0,0.00031105,2]
[339982652,1728264645154,-150.0,0.00031107,2]
[339982653,1728264645164,-150.0,0.00031107,2]
[339982654,1728264645173,-150.0,0.00031108,2]
[339982655,1728264645183,-150.0,0.00031109,2]
[339982656,1728264645192,-150.0,0.00031109,2]
[339982657,1728264645202,-150.0,0.00031113,2]
[339982658,1728264645211,-1500.0,0.00031115,2]
[339982659,1728264645221,-150.0,0.00031116,2]
[339982660,1728264645231,-150.0,0.00031116,2]
[339982661,1728264645336,-150.0,0.00031122,2]
[339982662,1728264645345,-150.0,0.00031125,2]
[339982663,1728264645358,-150.0,0.00031125,2]
[339982664,1728264645368,-150.0,0.00031128,2]
[339982665,1728264645376,-150.0,0.00031129,2]
[339982666,1728264645385,-150.0,0.0003113,2]
[339982667,1728264645395,-150.0,0.00031133,2]
[339982668,1728264645404,-150.0,0.00031136,2]
[339982669,1728264645413,-166.67,0.00031137,2]
[339982670,1728264645422,-1500.0,0.00031138,2]
[339982671,1728264645432,-1500.0,0.00031139,2]
[339982672,1728264645441,-1112.45004659,0.00031142,2]
[339982673,1728264645450,-150.0,0.00031144,2]
[339982674,1728264645459,-150.87786766,0.00031144,2]
[339982675,1728264645470,-150.0,0.00031144,2]
[339982676,1728264645479,-150.0,0.00031149,2]
[339982677,1728264645489,-150.0,0.00031151,2]
[339982678,1728264645498,-150.0,0.00031153,2]
[339982679,1728264645508,-150.0,0.00031156,2]
[339982680,1728264645517,-150.0,0.00031157,2]
[339982681,1728264645527,-150.0,0.00031159,2]
[339982682,1728264645536,-177.23996185,0.00031162,2]
[339982683,1728264645545,-151.0,0.00031164,7]
[339982684,1728264645555,-150.0,0.00031164,2]
[339982685,1728264645564,-150.0,0.00031168,2]
[339982686,1728264645574,-150.0,0.00031169,2]
[339982687,1728264645582,-150.0,0.00031177,2]
[339982688,1728264645591,-150.0,0.00031179,2]
[339982689,1728264645602,-1500.0,0.00031181,2]
[339982690,1728264645612,-150.0,0.00031182,2]
[339982691,1728264645621,-1500.0,0.00031182,2]
[339982692,1728264645630,-150.0,0.00031183,2]
[339982693,1728264645639,-150.0,0.00031183,2]
[339982694,1728264645648,-150.0,0.00031185,2]
[339982695,1728264645658,-150.0,0.00031186,2]
[339982696,1728264645667,-150.0,0.00031187,2]
[339982697,1728264645676,-150.0,0.00031187,2]
[339982698,1728264645685,-1500.0,0.00031188,2]
[339982699,1728264645694,-150.0,0.0003119,2]
[339982700,1728264645703,-150.0,0.00031192,2]
[339982701,1728264645713,-150.0,0.00031195,2]
[339982702,1728264645722,-1500.0,0.00031201,2]
[339982703,1728264645732,-150.0,0.00031202,2]
[339982704,1728264645740,-150.0,0.00031202,2]
[339982705,1728264645749,-150.0,0.00031202,2]
[339982706,1728264645759,-150.0,0.00031202,2]
[339982707,1728264645768,-150.0,0.00031205,2]
[339982708,1728264645777,-1500.0,0.00031205,2]
[339982709,1728264645786,-150.0,0.00031208,2]
[339982710,1728264645796,-150.0,0.00031209,2]
[339982711,1728264645805,-150.0,0.0003121,2]
[339982712,1728264645814,-150.0,0.00031217,2]
[339982713,1728264645823,-150.0,0.00031218,2]
[339982714,1728264645833,-1500.0,0.0003122,2]
[339982715,1728264645842,-1500.0,0.00031227,2]
[339982716,1728264645853,-1500.0,0.00031229,2]
[339982717,1728264645862,-150.0,0.00031233,2]
[339982718,1728264645872,-1500.0,0.00031238,2]
[339982719,1728264645881,-1500.0,0.00031246,2]
[339982720,1728264645891,-1500.0,0.00031248,2]
[339982721,1728264645900,-150.0,0.00031251,2]
[339982722,1728264645910,-921.01581488,0.0003128,2]
[339982723,1728264645919,-4187.77320992,0.0003128,2]
[339982724,1728264645928,-859.0,0.000313,16]
[339982725,1728264645937,-1000.0,0.00031325,11]
[339982726,1728264645947,-1000.0,0.00031325,11]
[339982727,1728264645956,-1000.0,0.00031325,11]
[339982728,1728264645965,-1000.0,0.00031325,11]
[339982729,1728264645974,-1000.0,0.00031325,11]
[339982730,1728264645984,-1000.0,0.00031325,11]
[339982731,1728264645993,-1000.0,0.00031325,11]
[339982732,1728264646002,-1000.0,0.00031325,11]
[339982733,1728264646011,-1000.0,0.00031325,11]
[339982734,1728264646021,-1000.0,0.00031325,11]
[339982735,1728264646030,-500.0,0.00031325,120]
[339982737,1728264646039,-200.0,0.00031325,120]
[339982739,1728264646049,-507.3735428,0.0003137,2]
[339982740,1728264646058,-2955.60231705,0.00031377,2]
[339982741,1728264646068,-657.79039193,0.00031378,2]
[339982742,1728264646077,-1475.28643953,0.00031379,15]
[339982743,1728264646087,-566.85117482,0.00031379,2]
[339982744,1728264646097,-194.24170435,0.00031379,2]
[339982745,1728264646107,-474587.97173306,0.0003138,2]
[339982746,1728264646121,-82303.22264117,0.0003138,2]
[339982747,1728264646130,-151.0,0.0003138,7]
[339982748,1728264646139,-220.043102,0.0003138,7]
[339982749,1728264646149,-151.0,0.0003138,7]
[339982750,1728264646159,-151.0,0.0003138,7]
[339982752,1728264646169,-151.0,0.0003138,7]
[339982753,1728264646179,-151.0,0.0003138,7]
[339982754,1728264646188,-967.221255,0.0003138,7]
[339982755,1728264646199,-967.221255,0.0003138,7]
[339982756,1728264646208,-967.221255,0.0003138,7]
[339982757,1728264646217,-967.221255,0.0003138,7]
[339982758,1728264646226,-151.0,0.0003138,7]
[339982759,1728264646235,-233.72383,0.0003138,7]
[339982760,1728264646245,-29999.99,0.00031426,2]
[339982761,1728264646254,-15228.93,0.00031426,2]
[339982762,1728264646264,-568.12866875,0.00031802,15]
[339982763,1728264646274,-500.0,0.00031856,3]
[339982764,1728264646284,-500.0,0.00031865,3]
[339982766,1728264646293,-500.0,0.00031874,3]
[339982767,1728264646302,-500.0,0.00031882,3]
[339982769,1728264646312,-500.0,0.00031891,3]
[339982771,1728264646321,-500.0,0.00031899,3]
[339982772,1728264646330,-500.0,0.00031899,3]
[339982773,1728264646339,-500.0,0.000319,3]